bitfinex/quotes_ETHUSD_20250517
["timestamp","ask_amount","ask_price","bid_price","bid_amount"]
[1747523950327,4.04956669,2469.4,2469.3,0.38519903]
[1747523954696,4.04956669,2469.4,2469.0,4.05020352]
[1747523954896,4.04956669,2469.4,2469.0,5.00431086]
[1747523956007,4.04974214,2469.3,2469.0,0.95410734]
[1747523956204,7.853,2469.5,2469.0,0.95410734]
[1747523956404,4.05015815,2469.1,2468.9,0.7997]
[1747523956718,4.05022276,2469.0,2468.7,1.3497]
[1747523957504,4.83392947,2469.4,2468.8,4.05045744]
[1747523957803,7.851,2469.3,2469.1,4.04996826]
[1747523957978,7.851,2469.3,2469.1,0.88999951]
[1747523958379,0.7843,2469.6,2469.2,0.38544452]
[1747523958583,8.0,2469.8,2469.4,4.04951236]
[1747523958896,25.756,2469.9,2469.4,0.7997]
[1747523959234,25.756,2469.9,2469.5,4.04930299]
[1747523959404,25.756,2469.9,2469.5,4.93916659]
[1747523959588,29.80475382,2469.9,2469.5,4.93916659]
[1747523959913,21.95375382,2469.9,2469.5,0.8898636]
[1747523960090,21.95375382,2469.9,2469.5,4.93923075]
[1747523960282,21.95381963,2469.9,2469.5,0.8898636]
[1747523960487,21.95381963,2469.9,2469.5,4.04936756]
[1747523960789,21.95381963,2469.9,2469.4,4.8491745]
[1747523960987,21.95381963,2469.9,2469.5,4.04938714]
[1747523961623,17.905,2469.9,2469.5,4.04938714]
[1747523962327,12.04865644,2470.0,2469.6,4.43468269]
[1747523962627,19.89767112,2470.0,2469.7,0.44346827]
[1747523962788,19.89767112,2470.0,2469.6,0.38544452]
[1747523962984,4.04875991,2469.9,2469.6,0.38544452]
[1747523963331,4.04899998,2469.8,2469.7,0.38544452]
[1747523963484,4.048836,2469.9,2469.7,0.38544452]
[1747523963900,19.89770648,2470.0,2469.7,0.38544452]
[1747523964723,12.04870648,2470.0,2469.7,0.38544452]
[1747523965089,11.89676083,2469.9,2469.7,0.38544452]
[1747523965383,11.89676083,2469.9,2469.4,4.84917471]
[1747523965588,11.89676083,2469.9,2469.5,0.93804161]
[1747523966027,4.04894125,2469.8,2469.5,0.93804161]
[1747523966539,4.0491456,2469.7,2469.5,0.93804161]
[1747523966850,11.89682291,2469.9,2469.6,0.38514569]
[1747523967150,4.04864522,2470.0,2469.6,0.38514569]
[1747523967305,17.49,2470.2,2469.7,0.7995]
[1747523967639,7.847,2470.0,2469.7,4.84847732]
[1747523967841,7.847,2470.0,2469.8,0.5233623]
[1747523970135,11.89569887,2470.0,2469.7,0.7995]
[1747523970342,7.847,2470.0,2469.7,0.7995]
[1747523971038,7.847,2470.0,2469.7,4.848571]
[1747523971705,7.847,2470.0,2469.8,0.38511859]
[1747523972910,7.847,2470.0,2469.7,4.848571]
[1747523973110,7.847,2470.0,2469.7,1.68929034]
[1747523973530,4.04842881,2470.1,2469.7,1.68929034]
[1747523973748,7.845,2470.0,2469.7,1.68929034]
[1747523974700,7.845,2470.0,2469.7,5.73835318]
[1747523975869,0.7697,2470.4,2469.7,1.68929034]
[1747523976028,10.05,2470.5,2470.2,0.8183]
[1747523976233,7.843,2470.4,2470.2,0.8183]
[1747523976628,7.843,2470.3,2470.2,0.8183]
[1747523976833,3.54177043,2470.6,2470.2,0.8183]
[1747523977139,2.75747043,2470.6,2470.2,0.8183]
[1747523977462,10.60047043,2470.6,2470.2,4.86645048]
[1747523977656,2.75747043,2470.6,2470.3,0.89147469]
[1747523977858,10.60047043,2470.6,2470.3,0.89147469]
[1747523978174,14.64808089,2470.6,2470.3,0.89147469]
[1747523979345,14.64808089,2470.6,2470.3,1.18945898]
[1747523979669,14.64708089,2470.6,2470.3,1.18945898]
[1747523980371,14.64708089,2470.6,2470.4,4.65351463]
[1747523980372,10.59947043,2470.6,2470.4,4.65351463]
[1747523980668,2.75747043,2470.6,2470.5,4.04776361]
[1747523980845,2.75747043,2470.6,2470.5,4.80816361]
[1747523981041,2.75747043,2470.6,2470.5,0.7604]
[1747523981228,2.75747043,2470.6,2470.5,4.80816361]
[1747523981429,2.75747043,2470.6,2470.5,5.75433118]
[1747523981664,2.75747043,2470.6,2470.5,1.70656757]
[1747523982059,2.75747043,2470.6,2470.5,5.75433118]
[1747523983570,2.75747043,2470.6,2470.5,6.30433118]
[1747523983830,7.839,2471.0,2470.5,6.30433118]
[1747523983831,7.839,2471.0,2470.6,4.0475614]
[1747523984078,7.839,2471.0,2470.7,1.03518588]
[1747523984262,7.839,2471.0,2470.7,5.08259625]
[1747523984657,4.04670419,2471.2,2470.7,1.03518588]
[1747523984658,7.839,2471.2,2470.7,1.03518588]
[1747523984864,7.839,2471.2,2470.8,0.7604]
[1747523985087,2.83038807,2471.9,2471.0,1.3104]
[1747523985249,11.88463476,2471.8,2471.1,0.04046324]
[1747523985452,7.839,2471.8,2471.0,5.35727253]
[1747523985759,4.04607615,2471.6,2471.1,4.04677492]
[1747523985967,7.838,2471.6,2471.2,4.58221326]
[1747523986147,11.88396658,2471.6,2471.2,0.53571749]
[1747523986971,4.04614529,2471.5,2471.2,0.53571749]
[1747523987189,11.88396658,2471.6,2471.2,0.53571749]
[1747523987597,4.04587413,2471.7,2471.2,0.53571749]
[1747523987752,11.88305949,2471.6,2471.1,4.04670751]
[1747523989188,4.04612821,2471.5,2471.0,5.35724971]
[1747523989552,4.04603364,2471.6,2471.1,4.04677494]
[1747523989750,4.04614993,2471.5,2471.0,5.35726131]
[1747523989971,0.7843,2471.9,2471.2,1.3309]
[1747523990172,7.835,2471.8,2471.2,1.3309]
[1747523990387,11.88072743,2471.8,2471.3,4.04645272]
[1747523990777,11.8807083,2471.8,2471.3,4.04645328]
[1747523991289,4.04579852,2471.7,2471.2,1.3309]
[1747523991585,4.04579852,2471.7,2471.3,4.58421332]
[1747523992290,4.04571313,2471.8,2471.3,4.58421332]
[1747523992490,11.87971313,2471.8,2471.3,4.58421332]
[1747523993094,7.834,2471.9,2471.5,4.83992583]
[1747523993392,7.834,2471.9,2471.6,4.04585201]
[1747523993592,7.834,2472.0,2471.8,0.7938]
[1747523994086,11.87932548,2472.0,2471.8,0.7938]
[1747523995092,11.87932548,2472.0,2471.8,1.09009052]
[1747523995279,4.04532548,2472.0,2471.8,1.09009052]
[1747523996193,8.7721,2472.5,2471.8,1.09009052]
[1747523996194,0.7721,2472.5,2471.8,1.09009052]
[1747523996382,8.0,2472.3,2471.8,1.09009052]
[1747523996599,4.04498898,2472.2,2471.8,1.09009052]
[1747523996764,4.04498898,2472.2,2471.8,2.00826146]
[1747523996964,4.04517231,2472.1,2471.8,2.00826146]
[1747523997460,4.04507484,2472.2,2471.8,6.05387483]
[1747523997694,4.04507484,2472.2,2471.8,2.00826146]
[1747523997900,4.04523642,2472.1,2471.8,2.00826146]
[1747523999406,4.04547109,2471.9,2471.8,0.29629052]
[1747523999596,4.04539185,2472.0,2471.6,0.8167]
[1747524000075,4.04539185,2472.0,2471.6,4.86265187]
[1747524000406,4.04547652,2471.9,2471.6,0.8167]
[1747524001105,4.04519676,2472.1,2471.6,0.8167]
[1747524001106,4.04540629,2472.0,2471.6,0.8167]
[1747524001308,4.04540629,2472.0,2471.6,1.30297542]
[1747524002003,0.7778,2472.2,2471.6,1.30297542]
[1747524002176,7.829,2471.9,2471.6,4.8625262]
[1747524002972,4.82285915,2472.2,2471.8,4.0456158]
[1747524003309,11.87414626,2472.1,2471.7,4.04572502]
[1747524003610,11.87414626,2472.1,2471.7,4.3563443]
[1747524003909,7.829,2472.0,2471.7,4.3563443]
[1747524004151,7.829,2472.0,2471.7,5.27825396]
[1747524004347,4.04563302,2471.9,2471.7,1.23252894]
[1747524004644,4.04563302,2471.9,2471.6,0.8167]
[1747524005449,4.04563302,2471.9,2471.2,0.55]
[1747524005450,4.04563476,2471.8,2471.2,4.85413733]
[1747524005739,4.04563476,2471.8,2471.3,4.04644962]
[1747524005740,4.04573666,2471.8,2471.3,4.04644962]
[1747524006404,4.04594632,2471.7,2471.3,0.30073043]
[1747524006610,7.828,2471.6,2471.3,0.51548794]
[1747524006947,7.828,2471.6,2471.3,4.59637784]
[1747524007135,7.828,2471.6,2471.3,4.59637616]
[1747524007732,7.828,2471.6,2471.0,8.0]
[1747524007733,12.65837367,2471.6,2471.0,0.8076]
[1747524008045,4.04589387,2471.7,2471.2,4.04659328]
[1747524008246,4.04589387,2471.7,2471.0,1.11132687]
[1747524008247,8.0,2471.9,2471.3,1.21225933]
[1747524008448,15.827,2471.9,2471.5,4.04606983]
[1747524008819,11.87249579,2471.9,2471.5,4.04606983]
[1747524009256,11.87249579,2471.9,2471.4,4.04621014]
[1747524009421,4.04564401,2471.8,2471.4,4.04621014]
[1747524009748,4.04564401,2471.8,2471.4,4.04628022]
[1747524009951,7.827,2471.9,2471.0,0.30324144]
[1747524010151,7.827,2471.9,2471.1,0.8076]
[1747524010152,4.04598854,2471.6,2471.1,0.8076]
[1747524010368,0.7843,2471.8,2471.2,0.48543987]
[1747524010526,4.04596735,2471.6,2471.1,0.8076]
[1747524010720,4.04596735,2471.6,2471.2,4.04659024]
[1747524011121,4.04596735,2471.6,2471.1,4.85430653]
[1747524011324,4.04611484,2471.6,2471.1,0.8076]
[1747524011528,7.828,2471.7,2471.0,0.3012087]
[1747524011737,4.04638788,2471.4,2470.9,5.28756981]
[1747524012038,7.826,2471.3,2471.0,0.98847511]
[1747524012374,7.826,2471.3,2471.0,5.0354166]
[1747524012775,7.826,2471.3,2471.2,4.04661702]
[1747524013267,7.826,2471.3,2471.0,0.98847511]
[1747524013479,7.826,2471.3,2471.0,1.28868262]
[1747524013657,7.826,2471.3,2471.0,4.34705206]
[1747524014395,8.7843,2472.0,2471.1,4.80571952]
[1747524014575,4.0460749,2471.6,2471.1,4.80566682]
[1747524014880,0.7843,2471.6,2471.2,4.04649238]
[1747524015053,4.83033079,2471.6,2471.1,4.80569098]
[1747524015583,0.7843,2471.6,2471.2,4.04660744]
[1747524015738,12.81898259,2472.0,2471.5,4.04602148]
[1747524015943,7.825,2471.9,2471.5,4.04605711]
[1747524016267,4.04571243,2471.8,2471.3,4.86613685]
[1747524017062,4.04576764,2471.8,2471.1,5.41652794]
[1747524017257,7.825,2471.7,2471.5,4.04601491]
[1747524018586,7.825,2471.7,2471.6,4.04596212]
[1747524018758,12.81899583,2472.0,2471.6,4.04596212]
[1747524018963,8.7736,2472.0,2471.7,4.04576572]
[1747524019188,7.824,2471.9,2471.5,0.8198]
[1747524019507,7.824,2471.9,2471.6,4.04590845]
[1747524019869,7.824,2471.9,2471.6,4.43021759]
[1747524020372,11.86954793,2471.9,2471.6,0.38430914]
[1747524020904,7.824,2471.9,2471.6,4.43025349]
[1747524021674,7.824,2471.9,2471.6,4.04594435]
[1747524022207,7.824,2471.9,2471.5,0.8198]
[1747524022419,7.824,2471.9,2471.5,4.86589872]
[1747524022970,11.87317758,2472.1,2471.5,4.86589872]
[1747524022971,0.7736,2472.2,2471.5,1.75916698]
[1747524023179,4.04455987,2472.5,2471.6,4.08641632]
[1747524023408,12.04466932,2472.4,2472.0,4.04518657]
[1747524023611,11.86781997,2472.3,2471.9,4.86520087]
[1747524023910,7.823,2472.2,2471.9,4.86520087]
[1747524024110,7.823,2472.2,2471.9,0.8198]
[1747524024407,7.823,2472.2,2472.0,4.04524763]
[1747524024589,7.823,2472.2,2472.1,4.04499108]
[1747524027203,7.823,2472.2,2472.0,4.04521281]
[1747524027391,7.823,2472.2,2472.1,4.0451438]
[1747524029011,7.823,2472.2,2472.0,4.04522847]
[1747524029182,7.823,2472.2,2471.9,4.86519227]
[1747524029510,11.86804859,2472.2,2471.7,5.41849861]
[1747524029681,11.86804859,2472.2,2471.8,1.72914559]
[1747524030914,11.86804859,2472.2,2471.9,0.38415592]
[1747524031093,7.823,2472.2,2471.9,0.38415592]
[1747524031287,7.823,2472.2,2472.0,4.04522945]
[1747524032618,8.6016,2472.6,2472.3,4.04477982]
[1747524032818,7.819,2472.5,2472.2,4.04490353]
[1747524033311,4.04472475,2472.4,2471.9,4.79607423]
[1747524033516,4.04491326,2472.3,2471.9,0.98732448]
[1747524034516,4.82936953,2472.2,2471.9,0.98732448]
[1747524034719,4.04542189,2472.0,2471.5,4.79673728]
[1747524035019,11.86346241,2472.0,2471.5,4.79671011]
[1747524035218,11.86346241,2472.0,2471.6,4.04595409]
[1747524035414,11.86346241,2472.0,2471.6,0.88429257]
[1747524035988,7.818,2472.0,2471.6,4.9302368]
[1747524037619,7.818,2472.0,2471.7,4.04577267]
[1747524037823,7.817,2472.0,2471.8,4.04562444]
[1747524037987,7.817,2472.0,2471.8,4.94319341]
[1747524041124,7.817,2472.0,2471.8,0.89756897]
[1747524041291,7.817,2472.0,2471.6,0.88429257]
[1747524041292,11.8624147,2472.0,2471.6,4.93022094]
[1747524041493,7.817,2472.0,2471.6,4.93022094]
[1747524042900,4.04523631,2472.1,2471.6,4.93022094]
[1747524043107,11.86123631,2472.1,2471.6,4.93022094]
[1747524043607,7.816,2472.1,2471.6,4.93019016]
[1747524043810,11.86116218,2472.1,2471.7,0.56808902]
[1747524043994,11.86116218,2472.1,2471.6,4.0458301]
[1747524044199,4.04532898,2472.0,2471.5,4.79677248]
[1747524045436,4.04554773,2471.9,2471.4,4.59619553]
[1747524045635,4.04554773,2471.9,2471.5,4.04612245]
[1747524046130,7.816,2472.1,2471.6,4.04592613]
[1747524046331,4.04531309,2472.0,2471.5,4.43085763]
[1747524046497,4.04531309,2472.0,2471.5,5.40994473]
[1747524046831,4.04574931,2471.8,2471.5,1.36389004]
[1747524047132,4.83001402,2471.8,2471.5,0.38480294]
[1747524047431,4.83001402,2471.8,2471.3,4.81018427]
[1747524047809,4.82993761,2471.8,2471.4,4.04622303]
[1747524048432,0.7843,2471.8,2471.5,4.04610409]
[1747524048734,4.82948931,2472.1,2471.6,4.04591276]
[1747524049026,7.814,2472.0,2471.6,4.04587271]
[1747524049253,4.04547264,2471.9,2471.5,4.04604005]
[1747524049433,4.04547264,2471.9,2471.5,4.52702406]
[1747524050435,4.04547264,2471.9,2471.5,0.48098401]
[1747524050635,4.04547264,2471.9,2471.4,4.04622975]
[1747524051931,4.04547264,2471.9,2471.5,4.04611773]
[1747524052233,7.813,2471.8,2471.4,4.04617702]
[1747524053934,4.04603107,2471.6,2471.1,4.59666886]
[1747524054099,4.04603107,2471.6,2471.2,1.01743721]
[1747524054499,4.04614429,2471.5,2471.0,4.82756576]
[1747524055512,11.86396863,2471.6,2471.0,4.82756576]
[1747524055513,11.86402914,2471.6,2471.1,4.04678047]
[1747524056600,0.7843,2471.3,2471.0,4.34602325]
[1747524056801,8.5963,2471.3,2471.0,4.04687762]
[1747524057042,8.5963,2471.3,2471.0,5.76808164]
[1747524057609,7.812,2471.3,2471.2,4.04661702]
[1747524059923,7.812,2471.3,2471.1,4.04668735]
[1747524061173,0.7843,2471.5,2471.1,4.04668735]
[1747524061368,7.811,2471.3,2471.1,4.04678078]
[1747524061690,7.811,2471.3,2471.2,4.04661702]
[1747524062582,8.6033,2471.5,2471.3,4.04644677]
[1747524062583,0.7843,2471.5,2471.3,4.04644677]
[1747524062880,7.81,2471.4,2471.2,4.43141107]
[1747524063065,7.81,2471.4,2471.2,5.48151896]
[1747524063569,7.81,2471.4,2471.2,1.43500101]
[1747524063878,0.7843,2471.3,2471.2,0.38489312]
[1747524064334,0.7843,2471.3,2470.7,0.48157504]
[1747524064657,0.7843,2471.2,2470.7,0.48157504]
[1747524064963,4.04684653,2471.1,2470.7,0.48157504]
[1747524065965,4.83103685,2471.2,2470.7,4.52899849]
[1747524066474,0.7843,2471.2,2470.8,4.047236]
[1747524066640,7.809,2471.1,2470.9,4.79900038]
[1747524067870,7.809,2471.1,2470.9,0.752]
[1747524068031,7.809,2471.1,2470.7,5.09815369]
[1747524068237,11.85578212,2471.1,2470.7,4.34615369]
[1747524068645,7.809,2471.1,2470.7,4.34615369]
[1747524069578,11.85582875,2471.1,2470.7,4.34615369]
[1747524070872,7.809,2471.1,2470.7,4.34615369]
[1747524071062,7.809,2471.1,2470.7,5.26072836]
[1747524072073,4.83099241,2471.2,2470.7,5.26072836]
[1747524072294,7.808,2471.0,2470.7,5.26072836]
[1747524072577,7.808,2471.0,2470.8,4.04719209]
[1747524073141,7.808,2471.0,2470.7,5.26073111]
[1747524074087,0.7843,2471.4,2470.8,0.93082781]
[1747524074243,7.807,2471.3,2471.0,4.04693781]
[1747524075678,8.5943,2471.9,2471.5,4.04601685]
[1747524075874,7.807,2471.6,2471.4,4.04618817]
[1747524076061,7.807,2471.6,2471.4,4.93665643]
[1747524077377,7.807,2471.6,2471.4,0.89046826]
[1747524077568,7.807,2471.6,2471.3,4.8584608]
[1747524077940,7.807,2471.6,2471.3,0.8121]
[1747524078281,7.807,2471.6,2471.3,4.85854044]
[1747524079074,7.807,2471.6,2471.2,4.04654917]
[1747524079782,7.807,2471.6,2471.2,4.59654995]
[1747524080274,7.807,2471.6,2471.3,4.04643554]
[1747524080480,4.04582905,2471.7,2471.3,4.04643554]
[1747524080647,7.804,2471.6,2471.3,4.99196302]
[1747524083378,7.803,2471.7,2471.4,4.04627653]
[1747524083583,7.803,2471.7,2471.5,0.38467181]
[1747524084479,11.84882458,2471.7,2471.5,0.38467181]
[1747524084679,7.803,2471.7,2471.5,0.38467181]
[1747524084859,7.803,2471.7,2471.3,4.99188592]
[1747524086091,4.04569671,2471.8,2471.3,4.99188592]
[1747524086267,7.802,2471.6,2471.3,4.99188592]
[1747524086455,7.802,2471.6,2471.3,0.94552748]
[1747524086655,7.802,2471.6,2471.3,4.99195856]
[1747524087664,7.802,2471.6,2471.4,4.0462685]
[1747524087864,7.802,2471.6,2471.4,4.04627277]
[1747524088252,7.802,2471.6,2471.4,5.00510811]
[1747524089324,7.802,2471.6,2471.4,0.95883534]
[1747524090259,7.802,2471.6,2471.4,5.00505739]
[1747524090905,0.7772,2472.2,2471.5,0.7838]
[1747524091202,7.809,2472.0,2471.6,4.0458925]
[1747524091575,7.799,2471.9,2471.7,4.04578219]
[1747524091876,7.799,2471.9,2471.6,4.04586417]
[1747524092269,10.8272,2472.4,2471.6,0.98347598]
[1747524092470,19.65285449,2472.3,2471.7,4.04579843]
[1747524092669,15.608,2472.3,2471.9,4.04532213]
[1747524092866,19.65289092,2472.3,2472.0,0.38431519]
[1747524093105,4.82199404,2472.4,2472.0,0.38431519]
[1747524093311,15.608,2472.3,2472.0,0.38431519]
[1747524093510,7.799,2472.2,2472.0,0.38431519]
[1747524093684,12.62994944,2472.4,2472.0,0.38431519]
[1747524093887,8.5852,2472.4,2472.0,0.38431519]
[1747524094210,7.798,2472.3,2472.0,4.42950806]
[1747524094915,7.798,2472.3,2472.1,0.38431519]
[1747524095090,7.798,2472.3,2472.1,4.42945169]
[1747524095290,7.798,2472.3,2472.1,0.38431519]
[1747524096089,7.798,2472.3,2472.0,4.04522391]
[1747524096988,17.477,2472.5,2472.1,4.04499534]
[1747524097187,7.796,2472.4,2472.2,4.04497809]
[1747524097499,7.796,2472.4,2472.1,4.04505274]
[1747524097709,7.796,2472.3,2472.1,4.04505274]
[1747524097907,7.796,2472.3,2472.1,4.94282469]
[1747524098231,7.796,2472.3,2472.1,5.25114315]
[1747524099403,7.796,2472.3,2472.1,5.25116526]
[1747524099727,7.796,2472.3,2472.1,4.35339331]
[1747524100089,7.795,2472.4,2472.1,4.35339331]
[1747524100828,12.62864474,2472.6,2472.2,4.04495025]
[1747524101024,7.794,2472.3,2472.1,5.18597499]
[1747524102115,8.5842,2472.6,2472.2,4.04498017]
[1747524102292,7.794,2472.4,2472.2,4.96809813]
[1747524103210,7.793,2472.4,2472.2,4.96799899]
[1747524103895,7.793,2472.4,2472.3,4.04481656]
[1747524104304,7.793,2472.5,2472.4,4.04457622]
[1747524104844,7.792,2472.5,2472.4,4.04457622]
[1747524105021,7.792,2472.5,2472.4,4.94582254]
[1747524105219,3.59161077,2472.8,2472.4,0.90124632]
[1747524105409,8.7843,2473.0,2472.6,4.044199]
[1747524105600,7.792,2472.9,2472.6,4.044199]
[1747524106137,20.62197596,2473.0,2472.5,0.7734]
[1747524106138,28.2961,2473.3,2472.9,4.0437524]
[1747524106300,0.7741,2473.5,2472.7,0.7734]
[1747524106630,7.791,2473.4,2473.1,4.04350452]
[1747524106831,0.7741,2473.5,2473.1,4.04350452]
[1747524106832,0.7741,2473.5,2473.1,4.81689875]
[1747524107137,4.04261725,2473.7,2473.2,4.52491218]
[1747524107138,7.791,2473.3,2473.2,4.52491218]
[1747524107296,0.7741,2473.7,2473.3,4.04315245]
[1747524107504,7.791,2473.6,2473.2,4.52496062]
[1747524107897,10.05,2473.9,2473.2,0.48168988]
[1747524108204,2.04608807,2474.3,2474.1,4.04177704]
[1747524108407,2.04608807,2474.3,2473.9,0.7734]
[1747524108719,2.04608807,2474.3,2474.2,4.04171045]
[1747524109236,2.04608807,2474.3,2473.9,4.81557819]
[1747524109439,2.04608807,2474.3,2474.2,4.04171045]
[1747524109736,2.04608807,2474.3,2474.1,4.04179262]
[1747524110232,2.04608807,2474.3,2474.2,4.04171045]
[1747524110401,2.04608807,2474.3,2474.1,0.55]
[1747524110602,7.789,2474.5,2474.1,4.35213341]
[1747524110804,0.7741,2474.7,2474.1,5.37204619]
[1747524111026,0.7741,2474.7,2474.1,1.33029022]
[1747524111541,7.789,2474.6,2474.3,4.04152892]
[1747524111702,0.7843,2474.9,2474.3,4.04152892]
[1747524111902,15.578,2474.8,2474.3,4.04152892]
[1747524112137,19.61881589,2474.8,2474.3,4.04152892]
[1747524112335,0.7843,2474.9,2474.3,0.55]
[1747524112536,7.787,2475.0,2474.6,4.04105317]
[1747524112738,7.787,2475.0,2474.5,4.08154586]
[1747524112942,7.787,2475.0,2474.5,4.59114272]
[1747524113140,0.7843,2475.2,2474.5,4.59114272]
[1747524113141,0.7843,2475.2,2474.5,1.13969427]
[1747524113344,0.7843,2475.4,2474.5,0.55]
[1747524113543,7.786,2475.2,2474.9,4.04049064]
[1747524113749,2.04608807,2475.5,2475.1,4.59014107]
[1747524114107,2.04608807,2475.5,2475.2,0.68008478]
[1747524114446,6.08577916,2475.5,2475.2,0.68008478]
[1747524114621,4.03977125,2475.4,2475.2,0.68008478]
[1747524114811,6.87005291,2475.5,2475.2,0.68008478]
[1747524115148,4.03991435,2475.3,2475.2,0.68008478]
[1747524115356,11.82391435,2475.3,2475.2,0.68008478]
[1747524115655,19.82391435,2475.3,2475.2,0.68008478]
[1747524116353,22.05031548,2475.3,2475.2,0.68008478]
[1747524117348,20.60821435,2475.3,2475.2,0.68008478]
[1747524119614,12.82421435,2475.3,2475.2,0.68008478]
[1747524119819,28.39521435,2475.3,2475.2,0.68008478]
[1747524120754,28.94521435,2475.3,2475.2,0.68008478]
[1747524120925,47.68319944,2475.3,2475.2,0.68008478]
[1747524121127,4.82568376,2474.4,2474.3,0.48157504]
[1747524121314,28.39468376,2474.4,2474.3,0.48157504]
[1747524122457,4.04187381,2474.1,2473.7,1.08880579]
[1747524122612,4.04214469,2474.0,2473.7,1.08880579]
[1747524122812,7.781,2473.9,2473.7,1.08880579]
[1747524123931,7.781,2474.0,2473.7,1.60196255]
[1747524124129,11.82304226,2474.0,2473.7,1.60196255]
[1747524124531,4.042209,2473.9,2473.7,1.08880579]
[1747524124920,4.04236397,2473.8,2473.7,0.7925]
[1747524125116,4.04244174,2473.8,2473.4,1.09677474]
[1747524125362,4.04220057,2473.9,2473.4,0.7925]
[1747524125575,4.04244596,2473.8,2473.4,0.7925]
[1747524125759,4.04218018,2474.0,2473.4,4.83551009]
[1747524125927,7.781,2474.1,2473.7,0.8317]
[1747524126129,11.82288924,2474.1,2473.7,0.8317]
[1747524127323,4.0422335,2473.9,2473.7,0.8317]
[1747524127523,4.04213213,2474.0,2473.7,0.8317]
[1747524130045,4.04212249,2474.0,2473.7,0.8317]
[1747524130357,4.04259729,2473.7,2473.4,1.13492959]
[1747524130653,4.04279911,2473.6,2473.2,0.8317]
[1747524130834,4.04278619,2473.6,2473.2,0.8317]
[1747524131757,11.82269741,2473.6,2473.2,0.8317]
[1747524131961,4.04293569,2473.5,2473.3,0.38055289]
[1747524133247,4.04293569,2473.5,2473.3,0.67935754]
[1747524133462,4.04293569,2473.5,2473.4,0.38055289]
[1747524134028,3.99293569,2473.5,2473.4,0.38055289]
[1747524135776,4.04312791,2473.4,2473.1,0.67741753]
[1747524135977,4.04293844,2473.5,2473.1,0.64545224]
[1747524136153,7.78,2473.4,2473.1,0.64545224]
[1747524136471,7.78,2473.5,2473.1,0.64545224]
[1747524136671,7.78,2473.5,2473.2,4.04321808]
[1747524136977,7.78,2473.5,2473.1,0.64545224]
[1747524137180,12.82764465,2473.2,2473.1,0.38055289]
[1747524137339,12.04383517,2472.9,2472.8,0.48157504]
[1747524137540,27.66083517,2472.9,2472.8,0.48157504]
[1747524138287,28.44513517,2472.9,2472.8,0.48157504]
[1747524139778,8.7843,2472.9,2472.1,0.81]
[1747524139935,4.04435265,2472.6,2472.2,0.51644135]
[1747524140273,4.04439913,2472.6,2472.2,0.51644135]
[1747524140474,4.04450745,2472.5,2472.2,0.51644135]
[1747524140675,7.832,2472.4,2472.1,0.81]
[1747524141350,0.7843,2472.9,2472.1,4.85512115]
[1747524141673,4.04379378,2473.0,2472.4,4.8714393]
[1747524141895,7.834,2472.8,2472.4,4.8714393]
[1747524142073,7.834,2472.8,2472.5,0.54214393]
[1747524142570,7.834,2472.8,2472.4,4.87143328]
[1747524142774,7.834,2472.8,2472.4,0.8268]
[1747524143567,7.828,2472.8,2472.4,4.87138347]
[1747524143773,7.828,2472.8,2472.4,0.8268]
[1747524144755,7.828,2472.8,2472.4,4.87144979]
[1747524144954,7.828,2472.8,2472.4,0.8268]
[1747524145183,4.04423109,2472.7,2472.4,0.8268]
[1747524149282,4.04416225,2472.7,2472.4,0.8268]
[1747524151595,7.828,2472.8,2472.4,0.8268]
[1747524151759,11.87215975,2472.8,2472.4,0.8268]
[1747524151960,4.82766045,2473.2,2472.4,1.3139664]
[1747524151961,0.7843,2473.2,2472.4,1.3139664]
[1747524152159,4.04376997,2473.0,2472.5,0.8218]
[1747524152770,15.584,2473.1,2472.5,0.8218]
[1747524153068,4.04395809,2472.9,2472.5,0.8218]
[1747524153390,7.796,2472.8,2472.5,0.8218]
[1747524153592,7.796,2472.8,2472.5,1.35717294]
[1747524154491,4.04395809,2472.9,2472.5,1.35717294]
[1747524154686,7.793,2472.8,2472.5,1.35717294]
[1747524156358,4.8274808,2473.4,2472.8,4.0439132]
[1747524156587,15.569,2473.3,2472.8,0.55]
[1747524156779,15.569,2473.3,2472.9,0.8258]
[1747524156780,11.82822776,2473.3,2472.9,0.8258]
[1747524156988,7.785,2473.3,2473.0,0.48697265]
[1747524157196,7.785,2473.3,2472.9,0.8258]
[1747524157890,11.82716202,2473.4,2472.9,0.7758]
[1747524158194,7.786,2473.2,2472.9,0.7758]
[1747524159599,4.04319497,2473.3,2473.0,0.38271197]
[1747524159895,4.04310972,2473.4,2473.0,0.38271197]
[1747524160097,7.784,2473.3,2473.0,0.38271197]
[1747524160400,4.04350814,2473.1,2473.0,0.38271197]
[1747524161715,4.04398937,2472.9,2472.7,0.48157504]
[1747524161875,11.8279987,2472.8,2472.7,0.48157504]
[1747524162209,12.6458987,2472.8,2472.7,0.48157504]
[1747524162880,11.8279987,2472.8,2472.7,0.48157504]
[1747524163086,7.784,2472.9,2472.7,0.48157504]
[1747524163290,7.784,2472.8,2472.7,0.48157504]
[1747524163712,11.8279987,2472.8,2472.7,0.48157504]
[1747524163870,11.8279987,2472.8,2472.7,0.38344062]
[1747524164571,7.784,2472.8,2472.7,0.38344062]
[1747524164774,4.04375571,2473.0,2472.7,0.38344062]
[1747524165011,7.799,2472.9,2472.7,0.38344062]
[1747524165685,7.797,2472.8,2472.7,0.38344062]
[1747524166411,7.795,2472.8,2472.7,0.38344062]
[1747524166779,7.793,2472.8,2472.7,0.38344062]
[1747524167410,7.791,2473.0,2472.8,0.7752]
[1747524169005,7.791,2473.0,2472.9,0.38344062]
[1747524169729,11.83467165,2473.0,2472.9,0.38344062]
[1747524170510,4.04397208,2472.9,2472.7,0.38344062]
[1747524171092,4.0439987,2472.8,2472.7,0.38344062]
[1747524171285,4.8601987,2472.8,2472.7,0.38344062]
[1747524171479,4.0439987,2472.8,2472.7,0.38344062]
[1747524175644,4.04416225,2472.7,2472.6,0.38344062]
[1747524177844,4.86036225,2472.7,2472.6,0.38344062]
[1747524178053,12.64436225,2472.7,2472.6,0.38344062]
[1747524179033,4.04465296,2472.4,2472.3,0.38344062]
[1747524179217,11.82865296,2472.4,2472.3,0.38344062]
[1747524180344,4.04465296,2472.4,2472.3,0.38344062]
[1747524180557,8.0,2472.8,2472.3,0.38344062]